fUST/lending_fUST_20240301
["ID","MTS","AMOUNT","RATE_DAILY","PERIOD"]
[315958528,1709304641665,-292.93,0.00020998,2]
[315958530,1709304641674,-225.0338234,0.00020998,2]
[315958531,1709304641683,-251.64352987,0.00020998,2]
[315958533,1709304641692,-181.90088803,0.00020998,2]
[315958534,1709304641701,-155.43759914,0.00020998,2]
[315958536,1709304641710,-155.15981461,0.00020998,2]
[315958538,1709304641719,-4699.92951683,0.00020998,2]
[315958540,1709304641728,-812.22817838,0.00020998,2]
[315958542,1709304641738,-2573.68962548,0.00020998,2]
[315958544,1709304641747,-500.0,0.00020998,2]
[315958546,1709304641758,-26429.60103705,0.00020998,2]
[315958548,1709304641767,-500.0,0.00020998,2]
[315958550,1709304641777,-203.311,0.00020998,2]
[315958552,1709304641786,-500.0,0.00020998,2]
[315958554,1709304641795,-13853.40609578,0.00020998,2]
[315958556,1709304641804,-500.0,0.00020998,2]
[315958558,1709304641813,-500.0,0.00020998,2]
[315958560,1709304641822,-1212.00001212,0.00020998,2]
[315958562,1709304641831,-745.79,0.00020998,2]
[315958564,1709304641840,-745.79,0.00020998,2]
[315958566,1709304641850,-500.0,0.00020998,2]
[315958568,1709304641859,-500.0,0.00020998,2]
[315958570,1709304641868,-500.0,0.00020998,2]
[315958572,1709304641877,-500.0,0.00020998,2]
[315958574,1709304641887,-500.0,0.00020998,2]
[315958576,1709304641896,-500.0,0.00020998,2]
[315958578,1709304641908,-500.0,0.00020998,2]
[315958580,1709304641917,-500.0,0.00020998,2]
[315958582,1709304641926,-500.0,0.00020998,2]
[315958584,1709304641936,-500.0,0.00020998,2]
[315958586,1709304641946,-1283.54,0.00020998,2]
[315958588,1709304641955,-500.0,0.00020998,2]
[315958590,1709304641964,-500.0,0.00020998,2]
[315958592,1709304641973,-500.0,0.00020998,2]
[315958594,1709304641982,-500.0,0.00020998,2]
[315958596,1709304641992,-500.0,0.00020998,2]
[315958598,1709304642000,-500.0,0.00020998,2]
[315958600,1709304642009,-500.0,0.00020998,2]
[315958602,1709304642018,-500.0,0.00020998,2]
[315958604,1709304642029,-1700.43,0.00020998,2]
[315958606,1709304642041,-1700.43,0.00020998,2]
[315958608,1709304642050,-500.0,0.00020999,2]
[315958610,1709304642059,-500.0,0.00020999,2]
[315958612,1709304642068,-500.0,0.00020999,2]
[315958614,1709304642078,-500.0,0.00020999,2]
[315958616,1709304642086,-500.0,0.00020999,2]
[315958618,1709304642095,-500.0,0.00020999,2]
[315958620,1709304642104,-500.0,0.00020999,2]
[315958622,1709304642114,-500.0,0.00020999,2]
[315958624,1709304642123,-500.0,0.00020999,2]
[315958626,1709304642132,-500.0,0.00020999,2]
[315958628,1709304642141,-500.0,0.00020999,2]
[315958630,1709304642150,-500.0,0.00020999,2]
[315958632,1709304642159,-500.0,0.00020999,2]
[315958634,1709304642168,-396.50035613,0.00020999,2]
[315958636,1709304642177,-417.64,0.00020999,2]
[315958638,1709304642187,-745.79,0.00020999,2]
[315958640,1709304642195,-745.79,0.00020999,2]
[315958642,1709304642205,-745.79,0.00020999,2]
[315958644,1709304642215,-745.79,0.00020999,2]
[315958646,1709304642224,-745.79,0.00020999,2]
[315958648,1709304642233,-745.79,0.00020999,2]
[315958650,1709304642242,-745.79,0.00020999,2]
[315958652,1709304642251,-745.79,0.00020999,2]
[315958654,1709304642261,-745.79,0.00020999,2]
[315958656,1709304642270,-745.79,0.00020999,2]
[315958658,1709304642280,-745.79,0.00020999,2]
[315958660,1709304642290,-745.79,0.00020999,2]
[315958662,1709304642299,-745.79,0.00020999,2]
[315958664,1709304642307,-745.79,0.00020999,2]
[315958666,1709304642316,-745.79,0.00020999,2]
[315958668,1709304642326,-745.79,0.00020999,2]
[315958670,1709304642335,-745.89666858,0.00020999,2]
[315958672,1709304642344,-500.0,0.00020999,2]
[315958674,1709304642354,-565.10198606,0.00020999,2]
[315958676,1709304642363,-500.0,0.00020999,2]
[315958678,1709304642371,-500.0,0.00020999,2]
[315958680,1709304642381,-500.0,0.00020999,2]
[315958682,1709304642390,-500.0,0.00020999,2]
[315958684,1709304642399,-500.0,0.00020999,2]
[315958686,1709304642408,-500.0,0.00020999,2]
[315958688,1709304642417,-500.0,0.00020999,2]
[315958690,1709304642426,-500.0,0.00020999,2]
[315958692,1709304642435,-500.0,0.00020999,2]
[315958694,1709304642444,-500.0,0.00020999,2]
[315958696,1709304642454,-500.0,0.00020999,2]
[315958698,1709304642463,-500.0,0.00020999,2]
[315958700,1709304642472,-500.0,0.00020999,2]
[315958702,1709304642481,-500.0,0.00020999,2]
[315958704,1709304642490,-271.63,0.00020999,2]
[315958706,1709304642500,-500.0,0.00020999,2]
[315958708,1709304642510,-500.0,0.00020999,2]
[315958719,1709304642597,-500.0,0.00020999,2]
[315958721,1709304642606,-500.0,0.00020999,2]
[315958723,1709304642616,-500.0,0.00020999,2]
[315958725,1709304642624,-500.0,0.00020999,2]
[315958727,1709304642633,-500.0,0.00020999,2]
[315958728,1709304642642,-500.0,0.00020999,2]
[315958731,1709304642652,-500.0,0.00020999,2]
[315958733,1709304642661,-174.48,0.00020999,2]
[315958735,1709304642670,-588.72006566,0.00020999,2]
[315958737,1709304642680,-500.0,0.00020999,2]
[315958739,1709304642689,-232.74,0.00020999,2]
[315958741,1709304642699,-1283.54,0.00020999,2]
[315958743,1709304642709,-1283.54,0.00020999,2]
[315958745,1709304642718,-1283.54,0.00020999,2]
[315958747,1709304642726,-1283.54,0.00020999,2]
[315958749,1709304642736,-1283.54,0.00020999,2]
[315958751,1709304642745,-1283.54,0.00020999,2]
[315958753,1709304642754,-1283.54,0.00020999,2]
[315958755,1709304642763,-1283.54,0.00020999,2]
[315958757,1709304642772,-1283.54,0.00020999,2]
[315958759,1709304642782,-1283.54,0.00020999,2]
[315958761,1709304642791,-1283.54,0.00020999,2]
[315958763,1709304642800,-1283.54,0.00020999,2]
[315958765,1709304642809,-1283.54,0.00020999,2]
[315958767,1709304642818,-1283.54,0.00020999,2]
[315958769,1709304642827,-1283.54,0.00020999,2]
[315958771,1709304642837,-1283.54,0.00020999,2]
[315958773,1709304642846,-1283.54,0.00020999,2]
[315958775,1709304642855,-1283.6262772,0.00020999,2]
[315958777,1709304642864,-500.0,0.00020999,2]
[315958779,1709304642873,-500.0,0.00020999,2]
[315958781,1709304642881,-500.0,0.00020999,2]
[315958782,1709304642890,-500.0,0.00020999,2]
[315958784,1709304642899,-205.17,0.00020999,2]
[315958786,1709304642909,-500.0,0.00020999,2]
[315958790,1709304642918,-500.0,0.00020999,2]
[315958791,1709304642928,-500.0,0.00020999,2]
[315958793,1709304642937,-500.0,0.00020999,2]
[315958796,1709304642950,-204.64,0.00020999,2]
[315958798,1709304642959,-500.0,0.00020999,2]
[315958800,1709304642969,-500.0,0.00020999,2]
[315958802,1709304642978,-500.0,0.00020999,2]
[315958804,1709304642987,-572.14932669,0.00020999,2]
[315958807,1709304642996,-500.0,0.00020999,2]
[315958809,1709304643006,-364.58,0.00020999,2]
[315958811,1709304643015,-1700.43,0.00020999,2]
[315958813,1709304643024,-1700.43,0.00020999,2]
[315958815,1709304643034,-1700.43,0.00020999,2]
[315958817,1709304643045,-1700.43,0.00020999,2]
[315958821,1709304643054,-1700.43,0.00020999,2]
[315958824,1709304643063,-1700.43,0.00020999,2]
[315958827,1709304643072,-1700.43,0.00020999,2]
[315958830,1709304643081,-1700.43,0.00020999,2]
[315958834,1709304643090,-1700.43,0.00020999,2]
[315958836,1709304643099,-1700.43,0.00020999,2]
[315958838,1709304643108,-1700.43,0.00020999,2]
[315958840,1709304643117,-1700.43,0.00020999,2]
[315958842,1709304643127,-1700.43,0.00020999,2]
[315958844,1709304643136,-1700.43,0.00020999,2]
[315958846,1709304643146,-1700.43,0.00020999,2]
[315958848,1709304643155,-1700.56089947,0.00020999,2]
[315958850,1709304643165,-209.06506407,0.00020999,2]
[315958852,1709304643175,-440017.37283891,0.00021,2]
[315958854,1709304643185,-112456.95,0.00021,2]
[315958856,1709304643193,-2068638.77567455,0.00021,2]
[315958864,1709304643253,-36318.1517079,0.00021,2]
[315958874,1709304643312,-593.06726301,0.00020169,3]
[315958876,1709304643324,-1284.00273699,0.00020169,3]
[315958878,1709304643333,-123.5342774,0.00021,2]
[315958880,1709304643346,-1881.20686118,0.00021,2]
[315958883,1709304643357,-54434.40875404,0.00021,2]
[315958903,1709304643539,-3192.23002367,0.00021,2]
[315958905,1709304643551,-277601.15627554,0.00021,2]
[315958912,1709304643604,-6699.99999996,0.00021,2]
[315958914,1709304643615,-6025.0,0.00021,2]
[315959214,1709304648050,-501.50076165,0.00020547,2]
[315959215,1709304648060,-862.16868052,0.00021,2]
[315959216,1709304648072,-620.54,0.00021,2]
[315959230,1709304648260,-0.94888042,0.00021,2]
[315961352,1709304874587,10000.0,0.00019,3]
[315961356,1709305162837,-2111.9879456,0.00017498,2]
[315961357,1709305162858,-346.0120544,0.00017498,2]
[315961358,1709305175576,-433.25,0.00021,9]
[315961397,1709305525811,529.795837,0.00016228,2]
[315961399,1709305560447,3000.0,0.0001609,2]
[315961401,1709305612165,530.58126747,0.00016228,2]
[315961402,1709305628141,276.43284035,0.00016228,2]
[315961404,1709305646146,276.43284035,0.00016228,2]
[315961405,1709305662142,276.43284035,0.00016228,2]
[315961406,1709305682137,276.43284035,0.00016228,2]
[315961415,1709305706143,276.43284035,0.00016228,2]
[315961419,1709305724138,276.43284035,0.00016228,2]
[315961422,1709305744310,276.43284035,0.00016228,2]
[315961427,1709305764226,276.43284035,0.00016228,2]
[315961428,1709305782158,276.43284035,0.00016228,2]
[315961434,1709305802159,276.43284035,0.00016228,2]
[315961439,1709305826154,242.12539933,0.00016228,2]
[315961462,1709305832772,-338.24161939,0.00016457,2]
[315961464,1709305832782,-527.85698207,0.00016457,2]
[315961466,1709305832791,-184.53594767,0.00016458,2]
[315961468,1709305832801,-294.5719047,0.00016458,2]
[315961470,1709305832810,-557.5480976,0.00016459,2]
[315961472,1709305832820,-8010.05157774,0.00016459,2]
[315961474,1709305832830,-403.09403574,0.00016462,2]
[315961476,1709305832839,-15234.87744507,0.00016464,2]
[315961478,1709305832848,-24900.0,0.00016481,2]
[315961480,1709305832857,-2136.1,0.00017484,2]
[315961482,1709305832867,-5445.53710548,0.00018,2]
[315961484,1709305832876,-776.62393623,0.000189,2]
[315961486,1709305832885,-3102.09605276,0.00019,2]
[315961488,1709305832898,-262.14132282,0.00019,2]
[315961490,1709305832908,-173.664971,0.00019178,2]
[315961492,1709305832918,-166.666666,0.00019178,2]
[315961494,1709305832928,-1144.08333442,0.00019509,2]
[315961496,1709305832938,-10896.86839579,0.00019988,2]
[315961498,1709305832947,-22275.76172496,0.0002,2]
[315961500,1709305832959,-448.25599995,0.0002,2]
[315961502,1709305832971,-3509.79404965,0.0002,2]
[315961505,1709305832985,-2098.73754031,0.0002,2]
[315961624,1709305841785,-400.82246414,0.00016456,2]
[315961626,1709305841794,-557.5480976,0.00016456,2]
[315961628,1709305841803,-13799.54378824,0.00016458,2]
[315961630,1709305841813,-105.55315709,0.0002,2]
[315961632,1709305841822,-4353.40530605,0.0002,2]
[315961634,1709305841831,-20840.03860396,0.0002,2]
[315961635,1709305841840,-238.53127687,0.0002,2]
[315961637,1709305841849,-155.06823002,0.00020186,2]
[315961638,1709305841858,-51745.52097609,0.00020189,5]
[315961640,1709305841867,-29463.8883244,0.00020189,5]
[315961641,1709305841876,-14926.54253836,0.00020189,2]
[315961643,1709305841886,-242.10061658,0.00020268,2]
[315961645,1709305841895,-500.0,0.00020268,2]
[315961647,1709305841905,-500.0,0.00020268,2]
[315961649,1709305841915,-200.30457798,0.00020268,2]
[315961651,1709305841924,-412.53102785,0.00020268,2]
[315961653,1709305841934,-500.0,0.00020268,2]
[315961655,1709305841943,-500.0,0.00020268,2]
[315961657,1709305841952,-500.0,0.00020268,2]
[315961659,1709305841962,-500.0,0.00020268,2]
[315961660,1709305841971,-500.0,0.00020268,2]
[315961663,1709305841982,-213.51434804,0.00020268,2]
[315961664,1709305841991,-500.0,0.00020268,2]
[315961666,1709305842001,-500.0,0.00020268,2]
[315961667,1709305842010,-500.0,0.00020268,2]
[315961668,1709305842019,-500.0,0.00020268,2]
[315961669,1709305842029,-500.0,0.00020268,2]
[315961670,1709305842038,-500.0,0.00020268,2]
[315961671,1709305842048,-500.0,0.00020268,2]
[315961672,1709305842057,-338.48736268,0.00020268,2]
[315961673,1709305842067,-500.0,0.00020268,2]
[315961675,1709305842076,-500.0,0.00020268,2]
[315961676,1709305842086,-623.32489458,0.00020268,2]
[315961677,1709305842095,-43769.41210373,0.00020269,2]
[315961678,1709305842104,-12462.76277522,0.00020299,2]
[315961680,1709305842113,-3646.22827214,0.00020299,2]
[315961681,1709305842122,-4411.90875734,0.00020299,2]
[315961682,1709305842131,-66909.91920661,0.00020369,2]
[315961683,1709305842140,-646.20416672,0.00020484,2]
[315961684,1709305842150,-500.0,0.00020547,2]
[315961685,1709305842159,-640.06006059,0.00020547,2]
[315961686,1709305842169,-500.9495085,0.00020547,2]
[315961687,1709305842178,-500.0,0.00020547,2]
[315961688,1709305842187,-500.0,0.00020547,2]
[315961689,1709305842196,-500.0,0.00020547,2]
[315961690,1709305842206,-542.79,0.00020547,2]
[315961691,1709305842215,-500.0,0.00020547,2]
[315961692,1709305842224,-500.0,0.00020547,2]
[315961693,1709305842234,-500.0,0.00020547,2]
[315961694,1709305842243,-500.0,0.00020547,2]
[315961695,1709305842253,-500.0,0.00020547,2]
[315961696,1709305842262,-500.0,0.00020547,2]
[315961697,1709305842272,-500.0,0.00020547,2]
[315961698,1709305842281,-371.80243991,0.00020547,2]
[315961699,1709305842290,-500.0,0.00020547,2]
[315961700,1709305842299,-500.0,0.00020547,2]
[315961701,1709305842309,-503.82233976,0.00020547,2]
[315961702,1709305842318,-500.0,0.00020547,2]
[315961703,1709305842327,-500.0,0.00020547,2]
[315961704,1709305842337,-500.0,0.00020547,2]
[315961705,1709305842346,-500.0,0.00020547,2]
[315961706,1709305842357,-500.0,0.00020547,2]
[315961707,1709305842367,-500.0,0.00020547,2]
[315961708,1709305842377,-500.0,0.00020547,2]
[315961709,1709305842386,-324.67,0.00020547,2]
[315961710,1709305842395,-500.0,0.00020547,2]
[315961712,1709305842405,-500.0,0.00020547,2]
[315961714,1709305842414,-500.0,0.00020547,2]
[315961715,1709305842423,-500.0,0.00020547,2]
[315961716,1709305842433,-500.0,0.00020547,2]
[315961718,1709305842443,-500.0,0.00020547,2]
[315961720,1709305842452,-534.25293923,0.00020547,2]
[315961722,1709305842462,-500.0,0.00020547,2]
[315961724,1709305842471,-500.0,0.00020547,2]
[315961725,1709305842482,-500.0,0.00020547,2]
[315961727,1709305842491,-500.0,0.00020547,2]
[315961729,1709305842502,-500.0,0.00020547,2]
[315961730,1709305842512,-500.0,0.00020547,2]
[315961731,1709305842521,-500.0,0.00020547,2]
[315961732,1709305842531,-500.0,0.00020547,2]
[315961733,1709305842541,-500.0,0.00020547,2]
[315961734,1709305842551,-382.86228845,0.00020547,2]
[315961736,1709305842561,-500.0,0.00020547,2]
[315961738,1709305842571,-500.0,0.00020547,2]
[315961740,1709305842581,-500.0,0.00020547,2]
[315961742,1709305842591,-500.0,0.00020547,2]
[315961744,1709305842601,-500.0,0.00020547,2]
[315961746,1709305842611,-500.0,0.00020547,2]
[315961748,1709305842620,-165.05541843,0.00020547,2]
[315961750,1709305842630,-203.01649433,0.00020547,2]
[315961752,1709305842639,-241.83685928,0.00020547,2]
[315961753,1709305842649,-500.0,0.00020547,2]
[315961755,1709305842658,-500.0,0.00020547,2]
[315961757,1709305842668,-504.72596105,0.00020547,2]
[315961758,1709305842678,-500.0,0.00020547,2]
[315961760,1709305842688,-500.0,0.00020547,2]
[315961762,1709305842698,-500.0,0.00020547,2]
[315961764,1709305842707,-500.0,0.00020547,2]
[315961766,1709305842717,-500.0,0.00020547,2]
[315961768,1709305842726,-500.0,0.00020547,2]
[315961770,1709305842737,-622.03,0.00020547,2]
[315961772,1709305842748,-501.44644121,0.00020547,2]
[315961773,1709305842757,-212.62836898,0.00020547,2]
[315961775,1709305842767,-500.0,0.00020547,2]
[315961777,1709305842778,-500.0,0.00020547,2]
[315961779,1709305842789,-500.0,0.00020547,2]
[315961781,1709305842798,-360.64308606,0.00020547,2]
[315961783,1709305842808,-343.63079016,0.00020547,2]
[315961785,1709305842817,-500.0,0.00020547,2]
[315961787,1709305842826,-167.66596435,0.00020547,2]
[315961789,1709305842836,-502.82961798,0.00020547,2]
[315961791,1709305842845,-500.0,0.00020547,2]
[315961792,1709305842854,-500.0,0.00020547,2]
[315961794,1709305842863,-293.81384467,0.00020547,2]
[315961796,1709305842872,-500.0,0.00020547,2]
[315961798,1709305842881,-500.0,0.00020547,2]
[315961800,1709305842890,-500.0,0.00020547,2]
[315961802,1709305842899,-500.0,0.00020547,2]
[315961804,1709305842908,-500.0,0.00020547,2]
[315961806,1709305842918,-500.0,0.00020547,2]
[315961808,1709305842928,-500.0,0.00020547,2]
[315961810,1709305842937,-336.04,0.00020547,2]
[315961811,1709305842946,-515.34337058,0.00020547,2]
[315961813,1709305842955,-500.0,0.00020547,2]
[315961815,1709305842965,-500.0,0.00020547,2]
[315961817,1709305842975,-200.32914559,0.00020547,2]
[315961819,1709305842986,-500.0,0.00020547,2]
[315961821,1709305842995,-500.0,0.00020547,2]
[315961823,1709305843004,-500.0,0.00020547,2]
[315961824,1709305843013,-500.0,0.00020547,2]
[315961826,1709305843022,-349.59919861,0.00020547,2]
[315961828,1709305843031,-500.0,0.00020547,2]
[315961830,1709305843040,-500.0,0.00020547,2]
[315961832,1709305843049,-500.0,0.00020547,2]
[315961834,1709305843059,-500.0,0.00020547,2]
[315961836,1709305843068,-500.0,0.00020547,2]
[315961837,1709305843077,-181.82041299,0.00020547,2]
[315961839,1709305843086,-500.0,0.00020547,2]
[315961841,1709305843096,-500.0,0.00020547,2]
[315961843,1709305843106,-500.0,0.00020547,2]
[315961845,1709305843116,-500.0,0.00020547,2]
[315961847,1709305843127,-601.93171131,0.00020547,2]
[315961849,1709305843137,-500.0,0.00020547,2]
[315961851,1709305843147,-500.0,0.00020547,2]
[315961853,1709305843156,-500.0,0.00020547,2]
[315961854,1709305843164,-500.0,0.00020547,2]
[315961856,1709305843174,-500.0,0.00020547,2]
[315961859,1709305843183,-500.0,0.00020547,2]
[315961862,1709305843192,-500.0,0.00020547,2]
[315961865,1709305843201,-500.0,0.00020547,2]
[315961868,1709305843212,-500.0,0.00020547,2]
[315961871,1709305843220,-500.0,0.00020547,2]
[315961873,1709305843232,-203.311,0.00020547,2]
[315961875,1709305843243,-500.0,0.00020547,2]
[315961877,1709305843253,-500.0,0.00020547,2]
[315961879,1709305843263,-500.0,0.00020547,2]
[315961881,1709305843272,-622.392,0.00020547,2]
[315961884,1709305843281,-521.000517,0.00020547,2]
[315961887,1709305843290,-500.0,0.00020547,2]
[315961888,1709305843299,-500.0,0.00020547,2]
[315961891,1709305843309,-500.0,0.00020547,2]
[315961892,1709305843318,-500.0,0.00020547,2]
[315961894,1709305843328,-500.0,0.00020547,2]
[315961896,1709305843344,-500.0,0.00020547,2]
[315961898,1709305843353,-500.0,0.00020547,2]
[315961900,1709305843362,-500.0,0.00020547,2]
[315961902,1709305843372,-500.0,0.00020547,2]
[315961904,1709305843382,-500.0,0.00020547,2]
[315961906,1709305843395,-500.0,0.00020547,2]
[315961907,1709305843404,-500.0,0.00020547,2]
[315961909,1709305843415,-500.0,0.00020547,2]
[315961911,1709305843424,-500.0,0.00020547,2]
[315961913,1709305843434,-500.0,0.00020547,2]
[315961915,1709305843444,-500.0,0.00020547,2]
[315961917,1709305843454,-500.0,0.00020547,2]
[315961919,1709305843467,-500.0,0.00020547,2]
[315961921,1709305843476,-500.0,0.00020547,2]
[315961923,1709305843487,-500.0,0.00020547,2]
[315961925,1709305843497,-500.0,0.00020547,2]
[315961927,1709305843507,-500.0,0.00020547,2]
[315961928,1709305843518,-500.0,0.00020547,2]
[315961930,1709305843527,-500.0,0.00020547,2]
[315961932,1709305843539,-500.0,0.00020547,2]
[315961934,1709305843548,-179.78236095,0.00020547,2]
[315961936,1709305843557,-500.0,0.00020547,2]
[315961938,1709305843567,-500.0,0.00020547,2]
[315961940,1709305843576,-500.0,0.00020547,2]
[315961942,1709305843586,-500.0,0.00020547,2]
[315961944,1709305843596,-500.0,0.00020547,2]
[315961946,1709305843605,-500.0,0.00020547,2]
[315961948,1709305843615,-500.0,0.00020547,2]
[315961950,1709305843624,-500.0,0.00020547,2]
[315961951,1709305843633,-371.55897401,0.00020547,2]
[315961953,1709305843643,-500.0,0.00020547,2]
[315961954,1709305843653,-500.0,0.00020547,2]
[315961956,1709305843663,-500.0,0.00020547,2]
[315961958,1709305843673,-500.37719553,0.00020547,2]
[315961960,1709305843682,-500.0,0.00020547,2]
[315961962,1709305843692,-501.68710773,0.00020547,2]
[315961964,1709305843701,-500.0,0.00020547,2]
[315961966,1709305843710,-500.0,0.00020547,2]
[315961968,1709305843719,-183.96946213,0.00020547,2]
[315961969,1709305843729,-500.0,0.00020547,2]
[315961971,1709305843741,-500.0,0.00020547,2]
[315961981,1709305843821,-500.0,0.00020547,2]
[315961983,1709305843844,-500.0,0.00020547,2]
[315961985,1709305843854,-500.0,0.00020547,2]
[315961986,1709305843863,-500.0,0.00020547,2]
[315961988,1709305843872,-500.0,0.00020547,2]
[315961990,1709305843881,-500.0,0.00020547,2]
[315961992,1709305843891,-175.78279526,0.00020547,2]
[315961995,1709305843900,-500.0,0.00020547,2]
[315961997,1709305843909,-504.44467866,0.00020547,2]
[315961999,1709305843919,-500.0,0.00020547,2]
[315962001,1709305843928,-500.0,0.00020547,2]
[315962003,1709305843938,-500.0,0.00020547,2]
[315962004,1709305843947,-500.0,0.00020547,2]
[315962006,1709305843956,-500.0,0.00020547,2]
[315962008,1709305843966,-500.0,0.00020547,2]
[315962010,1709305843976,-500.0,0.00020547,2]
[315962012,1709305843989,-500.0,0.00020547,2]
[315962014,1709305843998,-500.0,0.00020547,2]
[315962016,1709305844008,-500.0,0.00020547,2]
[315962018,1709305844017,-503.80213088,0.00020547,2]
[315962020,1709305844027,-500.0,0.00020547,2]
[315962022,1709305844037,-500.0,0.00020547,2]
[315962024,1709305844047,-402.38428962,0.00020547,2]
[315962025,1709305844057,-500.0,0.00020547,2]
[315962027,1709305844067,-500.0,0.00020547,2]
[315962029,1709305844076,-500.0,0.00020547,2]
[315962031,1709305844086,-495.7610089,0.00020547,2]
[315962033,1709305844095,-500.0,0.00020547,2]
[315962035,1709305844105,-500.0,0.00020547,2]
[315962037,1709305844114,-491.44717413,0.00020547,2]
[315962039,1709305844124,-500.0,0.00020547,2]
[315962041,1709305844133,-500.0,0.00020547,2]
[315962042,1709305844142,-500.0,0.00020547,2]
[315962044,1709305844152,-501.08419367,0.00020547,2]
[315962046,1709305844161,-217.00868679,0.00020547,2]
[315962048,1709305844171,-599.29080255,0.00020547,2]
[315962050,1709305844181,-500.0,0.00020547,2]
[315962052,1709305844190,-500.0,0.00020547,2]
[315962054,1709305844199,-500.0,0.00020547,2]
[315962056,1709305844208,-500.0,0.00020547,2]
[315962058,1709305844218,-500.0,0.00020547,2]
[315962060,1709305844228,-500.0,0.00020547,2]
[315962062,1709305844242,-500.0,0.00020547,2]
[315962063,1709305844252,-500.0,0.00020547,2]
[315962065,1709305844261,-500.0,0.00020547,2]
[315962067,1709305844271,-500.0,0.00020547,2]
[315962069,1709305844279,-500.0,0.00020547,2]
[315962071,1709305844288,-500.0,0.00020547,2]
[315962073,1709305844297,-501.2660275,0.00020547,2]
[315962075,1709305844306,-500.0,0.00020547,2]
[315962076,1709305844315,-500.0,0.00020547,2]
[315962078,1709305844324,-500.0,0.00020547,2]
[315962080,1709305844338,-625.17870083,0.00020547,2]
[315962082,1709305844348,-502.11844382,0.00020547,2]
[315962084,1709305844359,-500.0,0.00020547,2]
[315962086,1709305844368,-501.57532436,0.00020547,2]
[315962088,1709305844378,-500.0,0.00020547,2]
[315962090,1709305844387,-500.0,0.00020547,2]
[315962092,1709305844397,-500.0,0.00020547,2]
[315962094,1709305844406,-500.0,0.00020547,2]
[315962096,1709305844415,-504.61327759,0.00020547,2]
[315962097,1709305844425,-500.0,0.00020547,2]
[315962099,1709305844435,-500.0,0.00020547,2]
[315962101,1709305844444,-500.0,0.00020547,2]
[315962103,1709305844453,-500.0,0.00020547,2]
[315962105,1709305844462,-500.0,0.00020547,2]
[315962107,1709305844472,-500.0,0.00020547,2]
[315962109,1709305844483,-500.0,0.00020547,2]
[315962111,1709305844493,-500.0,0.00020547,2]
[315962113,1709305844502,-500.0,0.00020547,2]
[315962115,1709305844512,-500.0,0.00020547,2]
[315962117,1709305844522,-500.0,0.00020547,2]
[315962118,1709305844531,-500.0,0.00020547,2]
[315962120,1709305844541,-527.39049889,0.00020547,2]
[315962122,1709305844551,-452.29044727,0.00020547,2]
[315962124,1709305844560,-500.0,0.00020547,2]
[315962126,1709305844570,-500.0,0.00020547,2]
[315962128,1709305844579,-500.0,0.00020547,2]
[315962130,1709305844588,-500.0,0.00020547,2]
[315962132,1709305844598,-500.0,0.00020547,2]
[315962134,1709305844607,-500.0,0.00020547,2]
[315962136,1709305844616,-500.0,0.00020547,2]
[315962138,1709305844625,-500.0,0.00020547,2]
[315962140,1709305844634,-500.0,0.00020547,2]
[315962142,1709305844644,-500.0,0.00020547,2]